fUST/lending_fUST_20250210
["ID","MTS","AMOUNT","RATE_DAILY","PERIOD"]
[352595984,1739185862405,-863.77,0.00012876,2]
[352595985,1739185862415,-1590.18,0.00012876,2]
[352595986,1739185862424,-500.0,0.00012876,2]
[352595987,1739185862434,-859.37,0.00012876,2]
[352595988,1739185862444,-1324.23,0.00012876,2]
[352595989,1739185862453,-151.0,0.00012876,2]
[352595990,1739185862462,-500.0,0.00012876,2]
[352595991,1739185862471,-640.35,0.00012876,2]
[352595992,1739185862481,-823.04,0.00012876,2]
[352595993,1739185862491,-500.0,0.00012876,2]
[352595994,1739185862500,-500.0,0.00012876,2]
[352595995,1739185862510,-543.76,0.00012876,2]
[352595996,1739185862519,-774.45,0.00012876,2]
[352595997,1739185862527,-500.0,0.00012876,2]
[352595998,1739185862536,-986.58,0.00012876,2]
[352595999,1739185862546,-409.8,0.00012876,2]
[352596000,1739185862556,-1626.49,0.00012876,2]
[352596001,1739185862565,-321.12035771,0.00012876,2]
[352596002,1739185862578,-420.29163,0.00012876,2]
[352596003,1739185862591,-19.91801229,0.00012876,2]
[352596004,1739185862601,-712.34569945,0.00012876,2]
[352596005,1739185862893,-500.0,0.00010958,2]
[352596006,1739185862902,-780.55,0.00010959,2]
[352596007,1739185862911,-500.0,0.00011095,2]
[352596008,1739185862920,-500.0,0.00011232,2]
[352596009,1739185862930,-500.0,0.00011369,2]
[352596010,1739185862939,-500.0,0.00011506,2]
[352596011,1739185862949,-1429.85430055,0.00012876,2]
[352596012,1739185862959,-583.3,0.00012876,2]
[352596013,1739185862969,-811.42,0.00012876,2]
[352596014,1739185862978,-500.0,0.00012876,2]
[352596015,1739185862987,-755.35012409,0.00012892,2]
[352596016,1739185862996,-516.62107659,0.000129,2]
[352596017,1739185863005,-516.62107656,0.000129,2]
[352596018,1739185863014,-516.62107656,0.000129,2]
[352596019,1739185863024,-1000.0,0.0001294,2]
[352596020,1739185863033,-755.35012409,0.00012992,2]
[352596021,1739185863043,-500.0,0.00013013,2]
[352596022,1739185863053,-758.83,0.00013013,2]
[352596023,1739185863063,-584.02,0.00013013,2]
[352596024,1739185863072,-572.79,0.00013013,2]
[352596025,1739185863083,-226.12032028,0.00013013,2]
[352596026,1739185863094,-273.87967972,0.00013013,2]
[352596027,1739185863104,-500.0,0.00013013,2]
[352596028,1739185863113,-500.0,0.00013013,2]
[352596029,1739185863123,-500.0,0.00013013,2]
[352596030,1739185863132,-500.0,0.00013013,2]
[352596031,1739185863141,-622.69,0.00013013,2]
[352596032,1739185863151,-651.86,0.00013013,2]
[352596033,1739185863161,-151.0,0.00013013,2]
[352596034,1739185863171,-500.0,0.00013013,2]
[352596035,1739185863181,-202.158792,0.00013013,2]
[352596036,1739185863190,-202.158792,0.00013013,2]
[352596037,1739185863200,-151.0,0.00013013,2]
[352596038,1739185863210,-500.0,0.00013013,2]
[352596039,1739185863220,-943.96,0.00013013,2]
[352596040,1739185863229,-500.0,0.00013013,2]
[352596041,1739185863239,-1632.27,0.00013013,2]
[352596042,1739185863249,-910.39,0.00013013,2]
[352596043,1739185863259,-870.71,0.00013013,2]
[352596044,1739185863269,-1859.96,0.00013013,2]
[352596045,1739185863279,-633.35,0.00013013,2]
[352596046,1739185863288,-363.273098,0.00013013,2]
[352596047,1739185863297,-230.580358,0.00013013,2]
[352596048,1739185863307,-363.273098,0.00013013,2]
[352596049,1739185863316,-596.76,0.00013013,2]
[352596050,1739185863326,-2156.94,0.00013013,2]
[352596051,1739185863336,-230.580358,0.00013013,2]
[352596052,1739185863349,-1204.72,0.00013013,2]
[352596053,1739185863358,-151.0,0.00013013,2]
[352596054,1739185863368,-702.74,0.00013013,2]
[352596055,1739185863378,-280.18288575,0.00013013,2]
[352596056,1739185863389,-1606.0,0.00013013,2]
[352596057,1739185863398,-3587.43,0.00013013,2]
[352596058,1739185863409,-851.67,0.00013013,2]
[352596059,1739185863420,-7968.06,0.00013013,2]
[352596060,1739185863431,-625.76,0.00013013,2]
[352596061,1739185863442,-267.06176226,0.00013013,2]
[352596062,1739186734147,-514.05680641,0.00010345,2]
[352596064,1739186825141,-5000.0,0.00010242,2]
[352596065,1739186825163,-2408.06223813,0.00010345,2]
[352596066,1739186825185,-412.1188463,0.00010349,2]
[352596067,1739186825208,-300.0,0.00010545,2]
[352596068,1739186825230,-4142.02394399,0.00010546,2]
[352596069,1739186827092,-297.27663771,0.00010546,2]
[352596070,1739186831115,-2999.39695108,0.00010546,2]
[352596071,1739186831139,-2375.7539217,0.00010575,2]
[352596072,1739186831161,-400.0,0.00010685,2]
[352596073,1739186831182,-500.0,0.00010958,2]
[352596074,1739186831203,-500.0,0.00010958,2]
[352596075,1739186831225,-214.73044086,0.00010958,2]
[352596076,1739186831248,-332.72451604,0.00010958,2]
[352596077,1739186837097,-167.27548396,0.00010958,2]
[352596078,1739186837120,-500.0,0.00010958,2]
[352596079,1739186837144,-403.32684995,0.00010958,2]
[352596108,1739187037739,-10922.5343077,0.00010046,2]
[352596109,1739187037749,-317.7,0.00010174,2]
[352596110,1739187037760,-7438.69753278,0.00010955,2]
[352596111,1739187037770,-300.0,0.00010957,2]
[352596112,1739187037782,-500.0,0.00010958,2]
[352596113,1739187037792,-500.0,0.00010958,2]
[352596114,1739187037801,-500.0,0.00010958,2]
[352596115,1739187037811,-500.0,0.00010958,2]
[352596116,1739187037820,-500.0,0.00010958,2]
[352596117,1739187037829,-500.0,0.00010958,2]
[352596118,1739187037839,-500.0,0.00010958,2]
[352596119,1739187037848,-500.0,0.00010958,2]
[352596120,1739187037857,-500.0,0.00010958,2]
[352596121,1739187037868,-500.0,0.00010958,2]
[352596122,1739187037878,-500.0,0.00010958,2]
[352596123,1739187037887,-168.66317829,0.00010958,2]
[352596124,1739187037897,-500.0,0.00010958,2]
[352596125,1739187037906,-500.0,0.00010958,2]
[352596126,1739187037916,-500.0,0.00010958,2]
[352596127,1739187037926,-500.0,0.00010958,2]
[352596128,1739187037935,-500.0,0.00010958,2]
[352596129,1739187037946,-500.0,0.00010958,2]
[352596130,1739187037956,-500.0,0.00010958,2]
[352596131,1739187037966,-500.0,0.00010958,2]
[352596132,1739187037976,-500.0,0.00010958,2]
[352596133,1739187037986,-500.0,0.00010958,2]
[352596134,1739187037995,-500.0,0.00010958,2]
[352596135,1739187038005,-659.57,0.00010958,2]
[352596136,1739187038015,-500.0,0.00010958,2]
[352596137,1739187038025,-500.0,0.00010958,2]
[352596138,1739187038035,-500.0,0.00010958,2]
[352596139,1739187038044,-500.0,0.00010958,2]
[352596140,1739187038053,-500.0,0.00010958,2]
[352596141,1739187038062,-500.0,0.00010958,2]
[352596142,1739187038071,-500.0,0.00010958,2]
[352596143,1739187038081,-271.62092571,0.00010958,2]
[352596144,1739187038090,-500.0,0.00010958,2]
[352596145,1739187038100,-500.0,0.00010958,2]
[352596146,1739187038109,-500.0,0.00010958,2]
[352596147,1739187038118,-2503.26,0.00010958,2]
[352596148,1739187038128,-500.0,0.00010958,2]
[352596149,1739187038137,-500.0,0.00010958,2]
[352596150,1739187038147,-1202.04,0.00010958,2]
[352596151,1739187038156,-575.5,0.00010958,2]
[352596152,1739187038165,-1412.81,0.00010958,2]
[352596153,1739187038175,-1069.56,0.00010958,2]
[352596154,1739187038185,-500.0,0.00010958,2]
[352596155,1739187038194,-620.32,0.00010958,2]
[352596156,1739187038204,-500.0,0.00010958,2]
[352596157,1739187038213,-500.0,0.00010958,2]
[352596158,1739187038222,-500.0,0.00010958,2]
[352596159,1739187038232,-500.0,0.00010958,2]
[352596160,1739187038241,-500.0,0.00010958,2]
[352596161,1739187038250,-500.0,0.00010958,2]
[352596162,1739187038260,-500.0,0.00010958,2]
[352596163,1739187038269,-796.85,0.00010958,2]
[352596164,1739187038278,-567.34,0.00010958,2]
[352596165,1739187038287,-500.0,0.00010958,2]
[352596166,1739187038297,-500.0,0.00010958,2]
[352596167,1739187038306,-13492.94,0.00010958,2]
[352596168,1739187038315,-500.0,0.00010958,2]
[352596169,1739187038324,-1067.17,0.00010958,2]
[352596170,1739187038334,-5296.47,0.00010958,2]
[352596171,1739187038343,-614.8,0.00010958,2]
[352596172,1739187038353,-2375.49,0.00010958,2]
[352596173,1739187038362,-500.0,0.00010958,2]
[352596174,1739187038372,-500.0,0.00010958,2]
[352596175,1739187038381,-500.0,0.00010958,2]
[352596176,1739187038391,-500.0,0.00010958,2]
[352596177,1739187038400,-500.0,0.00010958,2]
[352596178,1739187038410,-500.0,0.00010958,2]
[352596179,1739187038419,-1126.38,0.00010958,2]
[352596180,1739187038429,-567.25,0.00010958,2]
[352596181,1739187038438,-500.0,0.00010958,2]
[352596182,1739187038448,-500.0,0.00010958,2]
[352596183,1739187038457,-549.04,0.00010958,2]
[352596184,1739187038467,-1068.22,0.00010958,2]
[352596185,1739187038476,-617.09,0.00010958,2]
[352596186,1739187038485,-500.0,0.00010958,2]
[352596187,1739187038495,-642.8,0.00010958,2]
[352596188,1739187038504,-500.0,0.00010958,2]
[352596189,1739187038514,-301.29136698,0.00010958,2]
[352596190,1739187038525,-500.0,0.00010958,2]
[352596191,1739187038534,-500.0,0.00010958,2]
[352596192,1739187038544,-795.82,0.00010958,2]
[352596193,1739187038553,-500.0,0.00010958,2]
[352596194,1739187038562,-658.26,0.00010958,2]
[352596195,1739187038572,-500.0,0.00010958,2]
[352596196,1739187038581,-500.0,0.00010958,2]
[352596197,1739187038591,-401.98145756,0.00010958,2]
[352596198,1739187038600,-500.0,0.00010958,2]
[352596199,1739187038610,-500.0,0.00010958,2]
[352596200,1739187038619,-1478.98,0.00010958,2]
[352596201,1739187038629,-545.43908442,0.00010958,2]
[352596202,1739187038638,-1929.39,0.00010958,2]
[352596203,1739187038648,-500.0,0.00010958,2]
[352596204,1739187038658,-500.0,0.00010958,2]
[352596205,1739187038668,-564.71,0.00010958,2]
[352596206,1739187038678,-500.0,0.00010958,2]
[352596207,1739187038688,-7166.6,0.00010958,2]
[352596208,1739187038700,-500.0,0.00010958,2]
[352596209,1739187038714,-937.29,0.00010958,2]
[352596210,1739187038723,-500.0,0.00010958,2]
[352596211,1739187038733,-500.0,0.00010958,2]
[352596212,1739187038743,-544.55776115,0.00010958,2]
[352596213,1739187038754,-524.39,0.00010959,2]
[352596214,1739187038763,-563.06,0.00010959,2]
[352596215,1739187038776,-469.22,0.00010959,2]
[352596216,1739187038786,-391.02,0.00010959,2]
[352596217,1739187038797,-600.34659916,0.00011,2]
[352596218,1739187038807,-500.0,0.00011095,2]
[352596219,1739187038816,-500.0,0.00011095,2]
[352596220,1739187038826,-500.0,0.00011095,2]
[352596221,1739187038837,-500.0,0.00011095,2]
[352596222,1739187038848,-500.0,0.00011095,2]
[352596223,1739187038857,-500.0,0.00011095,2]
[352596224,1739187038868,-500.0,0.00011095,2]
[352596225,1739187038878,-500.0,0.00011095,2]
[352596226,1739187038888,-500.0,0.00011095,2]
[352596227,1739187038899,-500.0,0.00011095,2]
[352596228,1739187038910,-500.0,0.00011095,2]
[352596229,1739187038921,-500.0,0.00011095,2]
[352596230,1739187038931,-500.0,0.00011095,2]
[352596231,1739187038941,-500.0,0.00011095,2]
[352596232,1739187038952,-500.0,0.00011095,2]
[352596233,1739187038962,-500.0,0.00011095,2]
[352596234,1739187038972,-500.0,0.00011095,2]
[352596235,1739187038982,-500.0,0.00011095,2]
[352596236,1739187038991,-500.0,0.00011095,2]
[352596237,1739187039001,-500.0,0.00011095,2]
[352596238,1739187039011,-659.57,0.00011095,2]
[352596239,1739187039023,-500.0,0.00011095,2]
[352596240,1739187039033,-488.50781239,0.00011095,2]
[352596241,1739187039042,-500.0,0.00011095,2]
[352596242,1739187039052,-500.0,0.00011095,2]
[352596243,1739187039062,-500.0,0.00011095,2]
[352596244,1739187039071,-500.0,0.00011095,2]
[352596245,1739187039081,-500.0,0.00011095,2]
[352596246,1739187039091,-500.0,0.00011095,2]
[352596247,1739187039101,-500.0,0.00011095,2]
[352596248,1739187039111,-2503.26,0.00011095,2]
[352596249,1739187039120,-500.0,0.00011095,2]
[352596250,1739187039129,-512.10644892,0.00011095,2]
[352596251,1739187039139,-1202.04,0.00011095,2]
[352596252,1739187039149,-575.5,0.00011095,2]
[352596253,1739187039158,-1412.81,0.00011095,2]
[352596254,1739187039168,-1069.56,0.00011095,2]
[352596255,1739187039177,-500.0,0.00011095,2]
[352596256,1739187039187,-620.32,0.00011095,2]
[352596257,1739187039196,-500.0,0.00011095,2]
[352596258,1739187039206,-500.0,0.00011095,2]
[352596259,1739187039216,-500.0,0.00011095,2]
[352596260,1739187039225,-500.0,0.00011095,2]
[352596261,1739187039235,-500.0,0.00011095,2]
[352596262,1739187039244,-500.0,0.00011095,2]
[352596263,1739187039254,-500.0,0.00011095,2]
[352596264,1739187039265,-796.85,0.00011095,2]
[352596265,1739187039277,-567.34,0.00011095,2]
[352596266,1739187039286,-500.0,0.00011095,2]
[352596267,1739187039296,-500.0,0.00011095,2]
[352596268,1739187039305,-13492.94,0.00011095,2]
[352596269,1739187039315,-500.0,0.00011095,2]
[352596270,1739187039324,-1067.17,0.00011095,2]
[352596271,1739187039334,-5296.47,0.00011095,2]
[352596272,1739187039343,-614.8,0.00011095,2]
[352596273,1739187039354,-2375.49,0.00011095,2]
[352596274,1739187039364,-500.0,0.00011095,2]
[352596275,1739187039374,-500.0,0.00011095,2]
[352596276,1739187039383,-500.0,0.00011095,2]
[352596277,1739187039392,-500.0,0.00011095,2]
[352596278,1739187039402,-1126.38,0.00011095,2]
[352596279,1739187039411,-567.25,0.00011095,2]
[352596280,1739187039420,-500.0,0.00011095,2]
[352596281,1739187039430,-500.0,0.00011095,2]
[352596282,1739187039439,-549.04,0.00011095,2]
[352596283,1739187039448,-1068.22,0.00011095,2]
[352596284,1739187039457,-617.09,0.00011095,2]
[352596285,1739187039467,-500.0,0.00011095,2]
[352596286,1739187039476,-642.8,0.00011095,2]
[352596287,1739187039486,-500.0,0.00011095,2]
[352596288,1739187039495,-500.0,0.00011095,2]
[352596289,1739187039505,-500.0,0.00011095,2]
[352596290,1739187039514,-795.82,0.00011095,2]
[352596291,1739187039525,-500.0,0.00011095,2]
[352596292,1739187039534,-658.26,0.00011095,2]
[352596293,1739187039544,-500.0,0.00011095,2]
[352596294,1739187039554,-500.0,0.00011095,2]
[352596295,1739187039563,-281.35114352,0.00011095,2]
[352596296,1739187039573,-500.0,0.00011095,2]
[352596297,1739187039583,-1478.98,0.00011095,2]
[352596298,1739187039592,-1929.39,0.00011095,2]
[352596299,1739187039601,-500.0,0.00011095,2]
[352596300,1739187039611,-500.0,0.00011095,2]
[352596302,1739187039620,-564.71,0.00011095,2]
[352596304,1739187039630,-500.0,0.00011095,2]
[352596306,1739187039639,-7166.6,0.00011095,2]
[352596308,1739187039648,-500.0,0.00011095,2]
[352596310,1739187039657,-937.29,0.00011095,2]
[352596324,1739187039790,-500.0,0.00011095,2]
[352596326,1739187039800,-500.0,0.00011095,2]
[352596327,1739187039811,-160.33065693,0.00011132,2]
[352596328,1739187039820,-500.0,0.00011232,2]
[352596329,1739187039830,-500.0,0.00011232,2]
[352596330,1739187039840,-500.0,0.00011232,2]
[352596331,1739187039851,-500.0,0.00011232,2]
[352596332,1739187039861,-500.0,0.00011232,2]
[352596333,1739187039871,-532.98444533,0.00011232,2]
[352596334,1739187039881,-500.0,0.00011232,2]
[352596335,1739187039891,-500.0,0.00011232,2]
[352596336,1739187039901,-500.0,0.00011232,2]
[352596337,1739187039911,-500.0,0.00011232,2]
[352596338,1739187039920,-500.0,0.00011232,2]
[352596339,1739187039930,-500.0,0.00011232,2]
[352596340,1739187039939,-500.0,0.00011232,2]
[352596341,1739187039949,-500.0,0.00011232,2]
[352596342,1739187039959,-500.0,0.00011232,2]
[352596343,1739187039970,-500.0,0.00011232,2]
[352596344,1739187039980,-500.0,0.00011232,2]
[352596345,1739187039989,-500.0,0.00011232,2]
[352596346,1739187039999,-500.0,0.00011232,2]
[352596347,1739187040008,-500.0,0.00011232,2]
[352596348,1739187040018,-659.57,0.00011232,2]
[352596349,1739187040029,-500.0,0.00011232,2]
[352596350,1739187040038,-500.0,0.00011232,2]
[352596351,1739187040047,-646.69536164,0.00011232,2]
[352596352,1739187040057,-500.0,0.00011232,2]
[352596353,1739187040067,-576.35398343,0.00011232,2]
[352596354,1739187040077,-500.0,0.00011232,2]
[352596355,1739187040087,-500.0,0.00011232,2]
[352596356,1739187040096,-2503.26,0.00011232,2]
[352596357,1739187040106,-1202.04,0.00011232,2]
[352596358,1739187040116,-1412.81,0.00011232,2]
[352596359,1739187040125,-575.5,0.00011232,2]
[352596360,1739187040134,-1069.56,0.00011232,2]
[352596361,1739187040143,-500.0,0.00011232,2]
[352596362,1739187040153,-620.32,0.00011232,2]
[352596363,1739187040162,-500.0,0.00011232,2]
[352596364,1739187040172,-500.0,0.00011232,2]
[352596365,1739187040182,-500.0,0.00011232,2]
[352596366,1739187040191,-500.0,0.00011232,2]
[352596367,1739187040200,-500.0,0.00011232,2]
[352596368,1739187040210,-500.0,0.00011232,2]
[352596369,1739187040219,-500.0,0.00011232,2]
[352596370,1739187040229,-796.85,0.00011232,2]
[352596371,1739187040238,-567.34,0.00011232,2]
[352596372,1739187040247,-500.0,0.00011232,2]
[352596373,1739187040257,-500.0,0.00011232,2]
[352596374,1739187040266,-13492.94,0.00011232,2]
[352596375,1739187040277,-500.0,0.00011232,2]
[352596376,1739187040286,-1067.17,0.00011232,2]
[352596377,1739187040294,-5296.47,0.00011232,2]
[352596378,1739187040304,-614.8,0.00011232,2]
[352596379,1739187040313,-2375.49,0.00011232,2]
[352596380,1739187040324,-500.0,0.00011232,2]
[352596381,1739187040334,-500.0,0.00011232,2]
[352596382,1739187040343,-500.0,0.00011232,2]
[352596383,1739187040352,-500.0,0.00011232,2]
[352596384,1739187040362,-1126.38,0.00011232,2]
[352596385,1739187040371,-567.25,0.00011232,2]
[352596386,1739187040381,-500.0,0.00011232,2]
[352596387,1739187040390,-500.0,0.00011232,2]
[352596388,1739187040400,-1068.22,0.00011232,2]
[352596389,1739187040409,-549.04,0.00011232,2]
[352596390,1739187040419,-617.09,0.00011232,2]
[352596391,1739187040428,-500.0,0.00011232,2]
[352596392,1739187040437,-642.8,0.00011232,2]
[352596393,1739187040447,-500.0,0.00011232,2]
[352596394,1739187040457,-500.0,0.00011232,2]
[352596395,1739187040466,-500.0,0.00011232,2]
[352596396,1739187040475,-795.82,0.00011232,2]
[352596397,1739187040484,-500.0,0.00011232,2]
[352596398,1739187040494,-658.26,0.00011232,2]
[352596399,1739187040503,-500.0,0.00011232,2]
[352596400,1739187040513,-500.0,0.00011232,2]
[352596401,1739187040524,-500.0,0.00011232,2]
[352596402,1739187040534,-1478.98,0.00011232,2]
[352596403,1739187040543,-1929.39,0.00011232,2]
[352596404,1739187040557,-500.0,0.00011232,2]
[352596405,1739187040567,-500.0,0.00011232,2]
[352596406,1739187040577,-564.71,0.00011232,2]
[352596407,1739187040586,-500.0,0.00011232,2]
[352596408,1739187040595,-7166.6,0.00011232,2]
[352596409,1739187040605,-500.0,0.00011232,2]
[352596410,1739187040614,-937.29,0.00011232,2]
[352596411,1739187040623,-500.0,0.00011232,2]
[352596412,1739187040632,-500.0,0.00011232,2]
[352596413,1739187040642,-500.0,0.00011369,2]
[352596414,1739187040651,-500.0,0.00011369,2]
[352596415,1739187040661,-500.0,0.00011369,2]
[352596416,1739187040670,-500.0,0.00011369,2]
[352596417,1739187040680,-500.0,0.00011369,2]
[352596418,1739187040690,-500.0,0.00011369,2]
[352596419,1739187040700,-620.75555883,0.00011369,2]
[352596420,1739187040713,-500.0,0.00011369,2]
[352596421,1739187040723,-500.0,0.00011369,2]
[352596422,1739187040732,-500.0,0.00011369,2]
[352596423,1739187040741,-500.0,0.00011369,2]
[352596424,1739187040751,-500.0,0.00011369,2]
[352596425,1739187040761,-500.0,0.00011369,2]
[352596426,1739187040771,-500.0,0.00011369,2]
[352596427,1739187040781,-500.0,0.00011369,2]
[352596428,1739187040791,-500.0,0.00011369,2]
[352596429,1739187040800,-500.0,0.00011369,2]
[352596430,1739187040808,-500.0,0.00011369,2]
[352596431,1739187040818,-500.0,0.00011369,2]
[352596432,1739187040827,-659.57,0.00011369,2]
[352596433,1739187040836,-500.0,0.00011369,2]
[352596434,1739187040845,-500.0,0.00011369,2]
[352596435,1739187040854,-500.0,0.00011369,2]
[352596436,1739187040863,-500.0,0.00011369,2]
[352596437,1739187040872,-500.0,0.00011369,2]
[352596438,1739187040881,-2503.26,0.00011369,2]
[352596439,1739187040891,-1202.04,0.00011369,2]
[352596440,1739187040900,-1412.81,0.00011369,2]
[352596441,1739187040909,-575.5,0.00011369,2]
[352596442,1739187040919,-1069.56,0.00011369,2]
[352596443,1739187040929,-500.0,0.00011369,2]
[352596444,1739187040939,-620.32,0.00011369,2]
[352596445,1739187040947,-500.0,0.00011369,2]
[352596446,1739187040957,-500.0,0.00011369,2]
[352596447,1739187040966,-500.0,0.00011369,2]
[352596448,1739187040979,-518.98,0.00011369,2]
[352596449,1739187040989,-500.0,0.00011369,2]
[352596450,1739187040998,-796.85,0.00011369,2]
[352596451,1739187041008,-567.34,0.00011369,2]
[352596452,1739187041017,-500.0,0.00011369,2]
[352596453,1739187041028,-500.0,0.00011369,2]
[352596454,1739187041037,-13492.94,0.00011369,2]
[352596455,1739187041045,-500.0,0.00011369,2]
[352596456,1739187041055,-1067.17,0.00011369,2]
[352596457,1739187041063,-5296.47,0.00011369,2]
[352596458,1739187041072,-614.8,0.00011369,2]
[352596459,1739187041081,-2375.49,0.00011369,2]
[352596460,1739187041090,-500.0,0.00011369,2]
[352596461,1739187041099,-500.0,0.00011369,2]
[352596462,1739187041108,-532.59101627,0.00011369,2]
[352596463,1739187041117,-500.0,0.00011369,2]
[352596464,1739187041126,-1126.38,0.00011369,2]
[352596465,1739187041135,-567.25,0.00011369,2]
[352596466,1739187041144,-500.0,0.00011369,2]
[352596467,1739187041154,-500.0,0.00011369,2]
[352596468,1739187041163,-1068.22,0.00011369,2]
[352596469,1739187041173,-549.04,0.00011369,2]
[352596470,1739187041182,-617.09,0.00011369,2]
[352596471,1739187041191,-500.0,0.00011369,2]
[352596472,1739187041200,-642.8,0.00011369,2]
[352596473,1739187041209,-500.0,0.00011369,2]
[352596474,1739187041218,-500.0,0.00011369,2]
[352596475,1739187041228,-500.0,0.00011369,2]
[352596476,1739187041237,-795.82,0.00011369,2]
[352596477,1739187041246,-500.0,0.00011369,2]
[352596478,1739187041255,-658.26,0.00011369,2]
[352596479,1739187041264,-500.0,0.00011369,2]
[352596480,1739187041274,-500.0,0.00011369,2]
[352596481,1739187041283,-500.0,0.00011369,2]
[352596482,1739187041292,-1478.98,0.00011369,2]
[352596483,1739187041302,-1929.39,0.00011369,2]
[352596484,1739187041311,-500.0,0.00011369,2]
[352596485,1739187041319,-564.71,0.00011369,2]
[352596486,1739187041329,-500.0,0.00011369,2]
[352596487,1739187041338,-7166.6,0.00011369,2]
[352596488,1739187041347,-500.0,0.00011369,2]
[352596489,1739187041356,-937.29,0.00011369,2]
[352596490,1739187041366,-500.0,0.00011369,2]
[352596491,1739187041375,-500.0,0.00011369,2]
[352596492,1739187041384,-1645.25355753,0.00011391,2]
[352596493,1739187041393,-500.0,0.00011506,2]
[352596494,1739187041403,-500.0,0.00011506,2]
[352596495,1739187041411,-500.0,0.00011506,2]
[352596496,1739187041420,-500.0,0.00011506,2]
[352596497,1739187041429,-500.0,0.00011506,2]
[352596498,1739187041439,-500.0,0.00011506,2]
[352596499,1739187041447,-500.0,0.00011506,2]
[352596500,1739187041457,-500.0,0.00011506,2]
[352596501,1739187041466,-500.0,0.00011506,2]
[352596502,1739187041475,-500.0,0.00011506,2]
[352596503,1739187041484,-500.0,0.00011506,2]
[352596504,1739187041493,-500.0,0.00011506,2]
[352596505,1739187041502,-500.0,0.00011506,2]
[352596506,1739187041511,-500.0,0.00011506,2]
[352596507,1739187041521,-500.0,0.00011506,2]
[352596508,1739187041530,-500.0,0.00011506,2]
[352596509,1739187041539,-500.0,0.00011506,2]
[352596510,1739187041549,-580.12,0.00011506,2]
[352596511,1739187041558,-659.57,0.00011506,2]
[352596512,1739187041568,-500.0,0.00011506,2]
[352596513,1739187041577,-500.0,0.00011506,2]
[352596514,1739187041587,-500.0,0.00011506,2]
[352596515,1739187041596,-500.0,0.00011506,2]
[352596516,1739187041605,-2503.26,0.00011506,2]
[352596517,1739187041615,-1202.04,0.00011506,2]
[352596518,1739187041624,-1412.81,0.00011506,2]
[352596519,1739187041633,-575.5,0.00011506,2]
[352596520,1739187041642,-1069.56,0.00011506,2]
[352596521,1739187041652,-409.48,0.00011506,2]
[352596522,1739187041661,-620.32,0.00011506,2]
[352596523,1739187041671,-500.0,0.00011506,2]
[352596524,1739187041680,-500.0,0.00011506,2]
[352596525,1739187041689,-500.0,0.00011506,2]
[352596526,1739187041700,-500.0,0.00011506,2]
[352596527,1739187041712,-796.85,0.00011506,2]
[352596528,1739187041721,-567.34,0.00011506,2]
[352596529,1739187041731,-500.0,0.00011506,2]
[352596530,1739187041740,-500.0,0.00011506,2]
[352596531,1739187041750,-13492.94,0.00011506,2]